Cogmind - Beta 12 @@@ ROGUE MODE // 2023.09.12 @ 15:34:35 Player: DuckBoy Result: Destroyed by as-71709 with Assembled Rifle Performance ------------- Evolutions (0) 0 Regions Visited (2) 400 Robots Destroyed (10) 50 Value Destroyed (231) 231 Prototype IDs (0) 0 Alien Tech Used (0) 0 Bonus (0) 0 TOTAL SCORE: 681 Bonus ------- None Cogmind --------- Core Integrity 0/250 Matter 280/300 Energy 33/100 System Corruption 0% Temperature Cool (0) Movement Rolling (80) Location -10/Mines Parts ------- > --- POWER (1) -------- (None) > --- PROPULSION (2) --- Wheel > --- UTILITY (2) ------ Small Storage Unit > --- WEAPON (2) ------- Ripper > --- INVENTORY (8) ---- Ion Engine Ion Engine Peak State ------------ > --- POWER ------------ Ion Engine > --- PROPULSION ------- Wheel Wheel > --- UTILITY ---------- Small Storage Unit > --- WEAPON ----------- EM Pulse Gun Medium Laser > --- INVENTORY -------- EM Pulse Gun [Rating: 6] Favorites ----------- Power Ion Engine Engine Ion Engine Propulsion Wheel Treads Light Treads Wheel Wheel Utility Small Storage Unit Storage Small Storage Unit Weapon Medium Laser Energy Gun Medium Laser Slashing Weapon Ripper Build | -11 -10 -10 ------- Run | Jun Mat Min Slots Evolved . | . . . Power . | . . . Propulsion . | . . . Utility . | . . . Weapon . | . . . Parts Attached 25 | 6 4 15 Power 2 | 1 1 . Engine 2 | 1 1 . Core . | . . . Reactor . | . . . Propulsion 15 | 2 2 11 Treads 7 | . 2 5 Leg . | . . . Wheel 8 | 2 . 6 Hover . | . . . Flight . | . . . Utility 1 | 1 . . Device . | . . . Storage 1 | 1 . . Processor . | . . . Hackware . | . . . Protection . | . . . Artifact . | . . . Weapon 7 | 2 1 4 Energy Gun 6 | 2 1 3 Energy Cannon . | . . . Ballistic Gun . | . . . Ballistic Cannon . | . . . Launcher . | . . . Special Weapon . | . . . Impact Weapon . | . . . Slashing Weapon 1 | . . 1 Piercing Weapon . | . . . Special Melee Weapon . | . . . Unidentified Prototypes . | . . . Parts Lost 8 | . . 8 Power 1 | . . 1 Propulsion 3 | . . 3 Utility . | . . . Weapon 4 | . . 4 Highest Loss Streak 7 | . . 7 To Critical Strikes . | . . . Average Slot Usage (%) 84 | . 85 83 Engine 13 | . 14 13 Treads 13 | . 12 13 Wheel 14 | . 15 13 Storage 14 | . 14 14 Energy Gun 27 | . 28 27 Naked Turns . | . . . Heaviest Build 14 | 14 14 14 Greatest Support 40 | 20 40 40 Greatest Overweight (x) . | . . . Average Overweight (x) . | . . . Largest Inventory Capacity 8 | 8 8 8 Average Capacity 7 | 6 8 8 Most Carried 6 | 4 5 6 Average Carried 4 | 1 4 5 Final Capacity 8 | 8 8 8 Final Carried 5 | 4 5 2 Class Distribution -------------------- 100% | Mutant Dominant Class ---------------- Mutant | -10/Materials Mutant | -10/Mines Resources | -11 -10 -10 ----------- Run | Jun Mat Min Matter Collected 395 | 223 77 95 Remotely . | . . . Salvage Created 364 | . 154 210 Parts 11 | . 3 8 Haulers Intercepted 2 | . 2 . Recyclers Shooed . | . . . Parts Field Recycled . | . . . Retrieved Matter . | . . . Parts Self-Destructed . | . . . Prevented . | . . . Kills | -11 -10 -10 ------- Run | Jun Mat Min Combat Hostiles Destroyed 8 | . 3 5 Guns 7 | . 3 4 Classes Destroyed 6 | . 3 3 Hauler 2 | . 2 . Operator 1 | . 1 . Swarmer 3 | . 3 . Grunt 3 | . . 3 Demolisher 1 | . . 1 Assembled 1 | . . 1 Best Kill Streak 3 | . 3 2 Combat Bots Only 3 | . 3 2 Max Kills in Single Turn 1 | . 1 1 Gunslinging . | . . . Exploded . | . . . Melee . | . . . Uniques/NPCs Destroyed . | . . . Combat | -11 -10 -10 -------- Run | Jun Mat Min Damage Taken 901 | . 136 765 Core 260 | . 19 241 Absorbed by Shields . | . . . Core Remaining (%) 100 | 100 . . Volleys Fired 49 | . 20 29 Largest 2 | . 2 2 Hottest 100 | . 100 100 Shots Fired 94 | . 40 54 Gun 94 | . 40 54 Cannon . | . . . Launcher . | . . . Special . | . . . Kinetic . | . . . Thermal 82 | . 40 42 Explosive . | . . . Electromagnetic 12 | . . 12 Robot Hit Streak 5 | . 5 5 Robot Miss Streak 6 | . 6 3 Penetration Max . | . . . Secondary Targets 2 | . 1 1 Max Gunslinging Chain 1 | . 1 1 Shots Hit Robots 53 | . 24 29 Core Hits 21 | . 9 12 Critical Kills . | . . . Critical Parts Destroyed . | . . . Critical Strikes 7 | . 2 5 Burn 7 | . 2 5 Melee Attacks . | . . . Impact . | . . . Slashing . | . . . Piercing . | . . . Sneak Attacks . | . . . Combat Hostiles . | . . . Follow-up Attacks . | . . . Damage Inflicted 653 | . 295 358 Guns 653 | . 295 358 Cannons . | . . . Explosions . | . . . Melee . | . . . Ramming . | . . . Kinetic . | . . . Thermal 557 | . 295 262 Explosive . | . . . Electromagnetic 96 | . . 96 Impact . | . . . Slashing . | . . . Piercing . | . . . Highest Corruption . | . . . Average Corruption . | . . . Corruption Purged . | . . . Corruption Blocked . | . . . Overload Shots . | . . . Overflow Damage . | . . . Projectiles . | . . . Explosions . | . . . Melee . | . . . Knockbacks . | . . . Impact . | . . . Kinetic . | . . . Secondary . | . . . Self-Inflicted Damage . | . . . Shots . | . . . Rammed . | . . . Targets Rammed . | . . . Kicked . | . . . Crushed . | . . . Highest Temperature 414 | . 351 414 Average Temperature 126 | . 120 132 Received Heat Transfer 132 | . . 132 Effects 5 | . . 5 Shutdowns 1 | . . 1 Energy Bleed 1 | . . 1 Interference 2 | . . 2 Damage (minor) 1 | . . 1 Siege Activations . | . . . Robots Corrupted . | . . . Combat Hostiles . | . . . Parts Fried . | . . . Impact Corruptions . | . . . Robots Melted 1 | . . 1 Combat Hostiles 1 | . . 1 Parts Melted 4 | . 2 2 Heat Transferred 2159 | . 1036 1123 Parts Sabotaged . | . . . Parts Stolen . | . . . Parts Stripped . | . . . Power Chain Reactions . | . . . Missiles Intercepted . | . . . Alert | -11 -10 -10 ------- Run | Jun Mat Min Peak Influence 200 | . 104 200 Initial 40 | . . 40 Average 74 | . 38 121 Maximum Alert Level 1 | . . 1 Low Security (%) 98 | 100 100 96 Level 1 1 | . . 3 Level 2 . | . . . Level 3 . | . . . Level 4 . | . . . Level 5 . | . . . High Security . | . . . Max Security . | . . . Squads Dispatched 1 | . 1 . Investigation . | . . . Extermination . | . . . Reinforcement 1 | . 1 . Assault . | . . . Garrison . | . . . Intercept . | . . . Searches Triggered . | . . . Construction Impeded . | . . . Haulers Reinforced . | . . . Active Scanning Responses . | . . . Cargo Convoy Interrupts . | . . . Stealth | -11 -10 -10 --------- Run | Jun Mat Min Distress Signals 2 | . 1 1 Communications Jammed . | . . . Distress Signals . | . . . Times Spotted 18 | . 5 13 Peak Tracking Total 7 | . 4 7 Tactical Retreats 2 | . . 2 Traps | -11 -10 -10 ------- Run | Jun Mat Min Traps Triggered . | . . . Indirectly . | . . . Trap Hack Attempts . | . . . Triggered . | . . . Disarmed . | . . . Reprogrammed . | . . . Reused . | . . . Traps Extracted . | . . . Installed . | . . . Triggered . | . . . Machines | -11 -10 -10 ---------- Run | Jun Mat Min Machines Disabled . | . . . Max in Single Turn . | . . . Machines Repaired . | . . . Machines Sabotaged . | . . . Overloaded Fab Kills . | . . . Hacking | -11 -10 -10 --------- Run | Jun Mat Min Machines Accessed 1 | . 1 . Terminals 1 | . 1 . Fabricators . | . . . Repair Stations . | . . . Recycling Units . | . . . Scanalyzers . | . . . Garrison Access . | . . . Total Hacks 3 | . 3 . Successful 1 | . 1 . Failed 2 | . 2 . Catastrophic 1 | . 1 . Database Lockouts . | . . . Manual 3 | . 3 . Terminals 3 | . 3 . Fabricators . | . . . Repair Stations . | . . . Recycling Units . | . . . Scanalyzers . | . . . Garrison Access . | . . . Terminal Hacks 1 | . 1 . Robot Schematic 1 | . 1 . Fabricator Hacks . | . . . Repair Station Hacks . | . . . Recycling Unit Hacks . | . . . Scanalyzer . | . . . Garrison Access Hacks . | . . . Unauthorized Hacks . | . . . Terminals . | . . . Fabricators . | . . . Repair Stations . | . . . Recycling Units . | . . . Scanalyzers . | . . . Garrison Access . | . . . Data Cores Recovered . | . . . Used . | . . . Hacking Detections 1 | . 1 . Full Trace Events . | . . . Feedback Events . | . . . Feedback Blocked . | . . . Robot Schematics Acquired 1 | . 1 . Robots Built . | . . . Authchips . | . . . Time . | . . . Total Robot Build Rating . | . . . Part Schematics Acquired . | . . . Parts Built . | . . . Authchips . | . . . Time . | . . . Total Part Build Rating . | . . . Parts Repaired . | . . . Time . | . . . Parts Recycled . | . . . Recycled Matter . | . . . Retrieved Matter . | . . . Retrieved Components . | . . . Parts Scanalyzed . | . . . Part Schematics Acquired . | . . . Parts Damaged . | . . . Bothacking | -11 -10 -10 ------------ Run | Jun Mat Min Used RIF Installer . | . . . Robots Hacked . | . . . Non-combat . | . . . Combat . | . . . Robot Hacks Applied . | . . . Relay Couplers Released . | . . . Fabnet Peak Effective % . | . . . Robots Rewired . | . . . Allies Hacked . | . . . Hacks Repelled . | . . . Allies | -11 -10 -10 -------- Run | Jun Mat Min Total Allies . | . . . Largest Group . | . . . Highest-Rated Group . | . . . Highest-Rated Ally . | . . . Total Orders . | . . . Ally Attacks . | . . . Total Damage . | . . . Kills . | . . . Allies Corrupted . | . . . Allies Melted . | . . . Intel | -11 -10 -10 ------- Run | Jun Mat Min Robot Analysis Total . | . . . Derelict Logs Recovered 1 | . . 1 Drone Launches . | . . . Drone Recoveries . | . . . Exploration | -11 -10 -10 ------------- Run | Jun Mat Min Turns Passed 732 | 45 349 338 Spaces Moved 517 | 41 278 198 Core 1 | 1 . . Treads 107 | . 64 43 Legs . | . . . Wheels 409 | 40 214 155 Hover . | . . . Flight . | . . . Fastest Speed 50 | 50 80 80 Average Speed 96 | 79 98 97 Slowest Speed 160 | 80 160 160 Overloaded Moves . | . . . Propulsion Burnouts . | . . . Robots Hopped . | . . . Cave-ins Triggered . | . . . Exploration Rate (%) 30 | 3 42 47 Regions Visited 2 Branch Regions 1 Pre-discovered Areas 1 | . . 1 Known Exits Taken . | . . . Unknown Exits Taken 2 | 1 1 . Scrap Searched . | . . . Spaces Dug . | . . . Terrain Destroyed . | . . . Melee . | . . . Projectile . | . . . AOE . | . . . Terrain Rammed . | . . . Walls Destroyed . | . . . Machines Disabled . | . . . Actions | -11 -10 -10 --------- Run | Jun Mat Min Total 646 | 50 312 284 Wait 51 | . 10 41 Move 515 | 40 277 198 Hop . | . . . Pick Up 5 | 4 . 1 Fast Attach 7 | 6 1 . Attach 5 | . . 5 Detach . | . . . Swap 13 | . 3 10 Drop 1 | . 1 . Fire 49 | . 20 29 Melee . | . . . Ram . | . . . Kick . | . . . Crush . | . . . Escape Stasis . | . . . Rewire . | . . . Trap . | . . . Miscellaneous . | . . . Route ------- -11/Junkyard -10/Materials (discovered 2 exits: [*Mat] / [*Min]) -10/Mines History --------- Turn | Location | Event 28 | -11/Junkyard | Discovered new exit (range 16) 46 | -11/Junkyard | Entered Materials 313 | -10/Materials | Build established: Mutant 317 | -10/Materials | Discovered new exit (range 10) 389 | -10/Materials | Discovered new exit (range 5) 395 | -10/Materials | Entered Mines 396 | -10/Mines | Learned location of Storage (-7) 505 | -10/Mines | Assembled infested the area 647 | -10/Mines | Learned 2 Materials zone layouts 668 | -10/Mines | A weapon hastily lodged in a ceiling crevice suddenly fell to the ground 717 | -10/Mines | Core integrity fell below 50% 732 | -10/Mines | Core integrity fell below 20% 733 | -10/Mines | Destroyed by as-71709 with Assembled Rifle Last Messages --------------- 00597_ Acquired 12 matter. 00606_ Acquired 10 matter. 00632_ as-39960 destroyed. 00647_ Acquired derelict log, extracted data. Data stored: Materials zone layouts (x2). 00668_ A Ripper has been hastily shoved under some rubble with a note attached: "Rip and tear!" 00670_ Acquired Ripper. 00706_ K-01 Serf collects debris. 00709_ D-53 Grenadier destroyed. 00709_ K-01 Serf collects debris. 00720_ Ion Engine destroyed. 00720_ Lgt. Treads destroyed. 00723_ K-01 Serf collects debris. 00724_ EM Pulse Gun destroyed. 00727_ K-01 Serf collects debris. 00727_ Wheel destroyed. 00729_ Sml. Laser destroyed. 00729_ Lgt. Treads destroyed. 00731_ Med. Laser destroyed. Map ----- +----------------------------------------------------+ | ????????????????????????????????????????????????# | | ?????????????????????????????????????????????????# | | ?????????????????????????????????????????????????# | | ?????????????????????????????????????????????????? | | ????????????????????????????????????????????####?? | | ???????????????????????????????????????????## ##? | | ??????????????????????????????????????????## ## | | ??????????????????????????????????????????# | | ??????####????????????????????????????????# ### | | ?????## ##??????????????????????????????## #?? | | ?????# ###?????????????????????????????## #?# | | ????## ##?????????????????????######### %#?# | | ????# #????????????????????## % #?# | | ????# #???????????????????## #?# | | ????# #?????????????????### ##### #?? | | ?????# #????????????????### ##???# ### | | ?????# ##???????????????## ##???## | | ?????## #????????????????# #????# ### | | ?????## ##??????????????## =% ##????# ##? | | ????## #####????????## ] #????## #? | | ##### ##???#### d #????# #? | | ##### k #????# #? | | a ##????## ##? | | ###### ### # ##??????#####?? | | ?????### #?## ## #?????????????? | | ???????# #??# @ ## #?????????????? | | ???????# #?## % =% #?????????????? | | ???##### ### # ### #????????????? | | #??# ## ## # ##?# #????????????= | | #?# ####### ### ## #??# ??????????? | | ## ####??# #?# ### ##??# ?????????? " | | ##?## % ### #?# #????###?#???????????? | | ##?# == ## #?## ##????????????????????? | | ## #?# ## #??####?????????????????????? | | ?### #?# ## #???????????????????????????? | | ???## #### ### #???????????????????????????? | | ????## ####?# #???????????????????????????? | | ????## ## #?#### #???????????????????????????? | | ???## ## ### ##??????????????????????????? | | ???# ## ## #??????????????????????????? | | ???# # # #??????????????????????????? | | ???## ##??????????????????????????? | | ????# ##???????????????????????????? | | ????# #### ##????????????????????????????? | | ????## ##??## ##?????????????????????????????? | | ?????####????######??????????????????????????????? | | ?????????????????????????????????????????????????? | | ?????????????????????????????????????????????????? | | ?????????????????????????????????????????????????? | | | +----------------------------------------------------+ Best States ------------- Heat Dissipation 25 Energy Generation 10 Energy Capacity 250 Matter Stores 300 Matter Capacity 300 Sight Range 16 Terrain Scan Density 10 Evasion (%) 44 Recoil Reduction 2 Item Schematics ----------------- None Robot Schematics ------------------ A-02 Transporter | -10/Materials | Hacked Fabricated ------------ Nothing Alien Tech Used ----------------- None Achievements -------------- None Challenges ------------ None Game ------ Seed GuidedFlightExtractor Manual? 0 Play Time 00:08:50 Cumulative 280.7 hours Start 2023.09.12 @ 15:28:37 End 2023.09.12 @ 15:34:35 Sessions 1 Manual Loads 0 Difficulty Rogue Special Mode None Game No. 192 Rogue 189 Adventurer 3 Explorer 0 Win Type - Total 5 Types 4/0/1/0/0/0/0/0/0 Lore% 71 Gallery% 75 Achievement% 64 Wizard Run 0 Options --------- ASCII 0 Keyboard 0 Movement Numpad Keybinds 0 Fullscreen 1 Font 18/SmallcapsGlow Map View 76x50 Tactical HUD 1 Map Filters NONE Filters NONE Steam 1 RUN: 771f2afc-9b7a-4b3e-964e-a4cc3803b0f9